[Event "Open NK Rapid 2025 bord 26-50"]
[Site "Helmond, Netherlands"]
[Date "2025.05.03"]
[Round "8.8"]
[White "Madularea, David"]
[Black "Cakmak, Metehan Tugra"]
[Result "1-0"]
[TimeControl "15 min +5 sec increment"]
[WhiteFideId "1070215"]
[BlackFideId "44583885"]
[WhiteElo "1921"]
[BlackElo "1787"]

1. e4 {[%clk 00:15:07]} {[%emt 00:00:02]} c5 {[%clk 00:15:07]} {[%emt
00:00:04]} 2. c3 {[%clk 00:14:55]} {[%emt 00:00:17]} d5 {[%clk 00:15:09]}
{[%emt 00:00:02]} 3. d3 {[%clk 00:14:59]} {[%emt 00:00:01]} Nc6 {[%clk
00:14:59]} {[%emt 00:00:15]} 4. Nd2 {[%clk 00:15:03]} e5 {[%clk 00:14:47]}
{[%emt 00:00:18]} 5. Ngf3 {[%clk 00:15:04]} {[%emt 00:00:03]} d4 {[%clk
00:14:46]} {[%emt 00:00:06]} 6. Nc4 {[%clk 00:14:52]} {[%emt 00:00:17]} Bd6
{[%clk 00:14:49]} {[%emt 00:00:02]} 7. Be2 {[%clk 00:14:39]} {[%emt 00:00:18]}
Bc7 {[%clk 00:14:50]} {[%emt 00:00:04]} 8. a4 {[%clk 00:14:42]} {[%emt
00:00:02]} Be6 {[%clk 00:14:32]} {[%emt 00:00:24]} 9. Nfd2 {[%clk 00:14:30]}
{[%emt 00:00:16]} Qg5 {[%clk 00:13:53]} {[%emt 00:00:44]} 10. g3 {[%clk
00:13:39]} {[%emt 00:00:56]} Nge7 {[%clk 00:13:25]} {[%emt 00:00:33]} 11. Nb3
{[%clk 00:13:34]} {[%emt 00:00:10]} Qf6 {[%clk 00:13:00]} {[%emt 00:00:30]} 12.
Nxc5 {[%clk 00:13:33]} {[%emt 00:00:06]} Bxc4 {[%clk 00:12:57]} {[%emt
00:00:09]} 13. dxc4 {[%clk 00:13:35]} b6 {[%clk 00:12:48]} {[%emt 00:00:16]} 14.
Nd3 {[%clk 00:13:15]} {[%emt 00:00:24]} dxc3 {[%clk 00:12:34]} {[%emt
00:00:19]} 15. bxc3 {[%clk 00:13:19]} Rd8 {[%clk 00:12:30]} {[%emt 00:00:09]}
16. Qc2 {[%clk 00:13:09]} {[%emt 00:00:14]} Qd6 {[%clk 00:11:51]} {[%emt
00:00:45]} 17. Ba3 {[%clk 00:12:58]} {[%emt 00:00:17]} Qe6 {[%clk 00:11:53]}
{[%emt 00:00:02]} 18. O-O {[%clk 00:12:46]} {[%emt 00:00:16]} O-O {[%clk
00:11:37]} {[%emt 00:00:22]} 19. Rad1 {[%clk 00:12:38]} {[%emt 00:00:13]} Na5
{[%clk 00:11:25]} {[%emt 00:00:17]} 20. c5 {[%clk 00:12:29]} {[%emt 00:00:14]}
Nc4 {[%clk 00:11:22]} {[%emt 00:00:08]} 21. Bb4 {[%clk 00:12:08]} {[%emt
00:00:26]} a5 {[%clk 00:10:53]} {[%emt 00:00:35]} 22. cxb6 {[%clk 00:12:11]}
{[%emt 00:00:02]} Bxb6 {[%clk 00:10:57]} {[%emt 00:00:01]} 23. Bc5 {[%clk
00:12:13]} {[%emt 00:00:02]} Rb8 {[%clk 00:10:29]} {[%emt 00:00:33]} 24. Bxb6
{[%clk 00:12:05]} {[%emt 00:00:13]} Nxb6 {[%clk 00:10:28]} {[%emt 00:00:07]} 25.
Nb2 {[%clk 00:11:30]} {[%emt 00:00:39]} Rfc8 {[%clk 00:10:18]} {[%emt
00:00:16]} 26. Bb5 {[%clk 00:11:31]} {[%emt 00:00:04]} Nc6 {[%clk 00:10:04]}
{[%emt 00:00:18]} 27. Qd2 {[%clk 00:11:19]} {[%emt 00:00:15]} Rd8 {[%clk
00:09:27]} {[%emt 00:00:45]} 28. Qe3 {[%clk 00:11:06]} {[%emt 00:00:17]} Rdc8
{[%clk 00:09:12]} {[%emt 00:00:21]} 29. Rd2 {[%clk 00:10:57]} {[%emt 00:00:13]}
Na7 {[%clk 00:08:54]} {[%emt 00:00:23]} 30. Rfd1 {[%clk 00:10:49]} {[%emt
00:00:13]} Nxb5 {[%clk 00:08:34]} {[%emt 00:00:26]} 31. axb5 {[%clk 00:10:52]}
{[%emt 00:00:01]} a4 {[%clk 00:08:31]} {[%emt 00:00:08]} 32. Rd6 {[%clk
00:10:49]} {[%emt 00:00:07]} Qb3 {[%clk 00:08:18]} {[%emt 00:00:18]} 33. Qxb6
{[%clk 00:10:43]} {[%emt 00:00:12]} Qxd1+ {[%clk 00:08:15]} {[%emt 00:00:08]}
34. Nxd1 {[%clk 00:10:47]} {[%emt 00:00:01]} Rxb6 {[%clk 00:08:12]} {[%emt
00:00:09]} 35. Rxb6 {[%clk 00:10:51]} {[%emt 00:00:01]} Ra8 {[%clk 00:08:08]}
{[%emt 00:00:08]} 36. Ra6 {[%clk 00:10:49]} {[%emt 00:00:08]} Rxa6 {[%clk
00:08:07]} {[%emt 00:00:06]} 37. bxa6 {[%clk 00:10:52]} {[%emt 00:00:01]} a3
{[%clk 00:08:11]} 38. a7 {[%clk 00:10:55]} {[%emt 00:00:02]} a2 {[%clk
00:08:12]} {[%emt 00:00:05]} 39. a8=R# {[%clk 00:10:50]} {[%emt 00:00:04]} 1-0

[Event "Open NK Rapid 2025 bord 26-50"]
[Site "Helmond, Netherlands"]
[Date "2025.05.03"]
[Round "8.9"]
[White "Teianu, Sabin"]
[Black "Sleeckx, Alexander"]
[Result "1-0"]
[TimeControl "15 min +5 sec increment"]
[WhiteFideId "1095846"]
[BlackFideId "1091972"]
[WhiteElo "2089"]
[BlackElo "1813"]

1. d4 {[%clk 00:15:09]} Nf6 {[%clk 00:15:08]} {[%emt 00:00:03]} 2. c4 {[%clk
00:15:13]} e6 {[%clk 00:15:12]} 3. Nc3 {[%clk 00:15:17]} Bb4 {[%clk 00:15:15]}
{[%emt 00:00:01]} 4. Bd2 {[%clk 00:15:20]} {[%emt 00:00:02]} c5 {[%clk
00:14:55]} {[%emt 00:00:25]} 5. dxc5 {[%clk 00:15:22]} {[%emt 00:00:02]} Bxc5
{[%clk 00:14:57]} {[%emt 00:00:04]} 6. Nf3 {[%clk 00:15:24]} {[%emt 00:00:02]}
O-O {[%clk 00:14:52]} {[%emt 00:00:11]} 7. g3 {[%clk 00:15:27]} {[%emt
00:00:02]} d5 {[%clk 00:14:15]} {[%emt 00:00:43]} 8. cxd5 {[%clk 00:15:26]}
{[%emt 00:00:06]} Nxd5 {[%clk 00:14:08]} {[%emt 00:00:12]} 9. Bg2 {[%clk
00:15:28]} {[%emt 00:00:02]} Re8 {[%clk 00:12:08]} {[%emt 00:02:05]} 10. O-O
{[%clk 00:15:25]} {[%emt 00:00:07]} Nc6 {[%clk 00:11:59]} {[%emt 00:00:15]} 11.
a3 {[%clk 00:14:38]} {[%emt 00:00:53]} Bf8 {[%clk 00:11:52]} {[%emt 00:00:11]}
12. Qc2 {[%clk 00:14:21]} {[%emt 00:00:23]} g6 {[%clk 00:11:02]} {[%emt
00:00:55]} 13. Nxd5 {[%clk 00:13:51]} {[%emt 00:00:35]} Qxd5 {[%clk 00:10:23]}
{[%emt 00:00:44]} 14. Bc3 {[%clk 00:13:46]} {[%emt 00:00:09]} Qh5 {[%clk
00:10:03]} {[%emt 00:00:26]} 15. e3 {[%clk 00:12:28]} {[%emt 00:01:23]} e5
{[%clk 00:09:43]} {[%emt 00:00:25]} 16. Rac1 {[%clk 00:10:23]} {[%emt
00:02:10]} Bg4 {[%clk 00:08:52]} {[%emt 00:00:55]} 17. Nd2 {[%clk 00:10:17]}
{[%emt 00:00:11]} Rac8 {[%clk 00:08:30]} {[%emt 00:00:27]} 18. Ne4 {[%clk
00:08:23]} {[%emt 00:01:59]} Be7 {[%clk 00:08:01]} {[%emt 00:00:35]} 19. Qa4
{[%clk 00:07:13]} {[%emt 00:01:15]} Be2 {[%clk 00:07:05]} {[%emt 00:01:01]} 20.
Rfe1 {[%clk 00:07:10]} {[%emt 00:00:08]} b5 {[%clk 00:07:05]} {[%emt 00:00:04]}
21. Qc2 {[%clk 00:06:48]} {[%emt 00:00:22]} Bf3 {[%clk 00:06:46]} {[%emt
00:00:30]} 22. Bxf3 {[%clk 00:05:45]} {[%emt 00:01:08]} Qxf3 {[%clk 00:06:49]}
{[%emt 00:00:02]} 23. Nd2 {[%clk 00:04:26]} {[%emt 00:01:24]} Qh5 {[%clk
00:06:51]} {[%emt 00:00:02]} 24. Qb3 {[%clk 00:04:22]} {[%emt 00:00:10]} a6
{[%clk 00:05:32]} {[%emt 00:01:24]} 25. Red1 {[%clk 00:03:04]} {[%emt
00:01:23]} Qf5 {[%clk 00:04:51]} {[%emt 00:00:46]} 26. Nf1 {[%clk 00:02:41]}
{[%emt 00:00:27]} h5 {[%clk 00:04:39]} {[%emt 00:00:18]} 27. Qd5 {[%clk
00:01:36]} {[%emt 00:01:09]} h4 {[%clk 00:04:01]} {[%emt 00:00:43]} 28. Qd7
{[%clk 00:00:27]} {[%emt 00:01:14]} Qh5 {[%clk 00:03:28]} {[%emt 00:00:39]} 29.
Bxe5 {[%clk 00:00:07]} {[%emt 00:00:26]} Red8 {[%clk 00:02:15]} {[%emt
00:01:17]} 30. Rxc6 {[%clk 00:00:08]} {[%emt 00:00:03]} Qxd1 {[%clk 00:01:12]}
{[%emt 00:01:08]} 31. Qxd1 {[%clk 00:00:10]} {[%emt 00:00:03]} Rxd1 {[%clk
00:01:13]} {[%emt 00:00:04]} 32. Rxc8+ {[%clk 00:00:14]} {[%emt 00:00:02]} 1-0

[Event "Open NK Rapid 2025 bord 26-50"]
[Site "Helmond, Netherlands"]
[Date "2025.05.03"]
[Round "8.10"]
[White "Ruben, Berend"]
[Black "Thijssen, Freek"]
[Result "0-1"]
[TimeControl "15 min +5 sec increment"]
[WhiteFideId "1084682"]
[BlackFideId "1091840"]
[WhiteElo "2074"]
[BlackElo "1790"]

1. e4 {[%clk 00:15:06]} {[%emt 00:00:04]} e5 {[%clk 00:15:05]} {[%emt
00:00:05]} 2. Nf3 {[%clk 00:15:09]} {[%emt 00:00:02]} Nc6 {[%clk 00:15:08]}
{[%emt 00:00:02]} 3. d4 {[%clk 00:15:12]} {[%emt 00:00:01]} exd4 {[%clk
00:15:10]} {[%emt 00:00:03]} 4. Bc4 {[%clk 00:15:16]} {[%emt 00:00:02]} Nf6
{[%clk 00:14:57]} {[%emt 00:00:18]} 5. O-O {[%clk 00:15:17]} {[%emt 00:00:03]}
Nxe4 {[%clk 00:14:52]} {[%emt 00:00:11]} 6. Re1 {[%clk 00:15:11]} {[%emt
00:00:11]} d5 {[%clk 00:14:55]} {[%emt 00:00:02]} 7. Bxd5 {[%clk 00:15:13]}
{[%emt 00:00:03]} Qxd5 {[%clk 00:14:58]} {[%emt 00:00:02]} 8. Nc3 {[%clk
00:15:16]} {[%emt 00:00:02]} Qa5 {[%clk 00:14:10]} {[%emt 00:00:52]} 9. Nxe4
{[%clk 00:15:10]} {[%emt 00:00:11]} Be6 {[%clk 00:14:12]} {[%emt 00:00:03]} 10.
Neg5 {[%clk 00:15:02]} {[%emt 00:00:13]} O-O-O {[%clk 00:14:14]} {[%emt
00:00:04]} 11. Nxe6 {[%clk 00:15:05]} {[%emt 00:00:02]} fxe6 {[%clk 00:14:17]}
{[%emt 00:00:02]} 12. Rxe6 {[%clk 00:14:58]} {[%emt 00:00:12]} Bd6 {[%clk
00:11:34]} {[%emt 00:02:48]} 13. Bg5 {[%clk 00:14:39]} {[%emt 00:00:24]} Rde8
{[%clk 00:11:30]} {[%emt 00:00:08]} 14. Qe2 {[%clk 00:14:37]} {[%emt 00:00:07]}
Ref8 {[%clk 00:06:43]} {[%emt 00:04:54]} 15. Re1 {[%clk 00:14:02]} {[%emt
00:00:38]} Qxa2 {[%clk 00:05:19]} {[%emt 00:01:30]} 16. b3 {[%clk 00:12:44]}
{[%emt 00:01:23]} Qa5 {[%clk 00:05:08]} {[%emt 00:00:15]} 17. Qc4 {[%clk
00:10:46]} {[%emt 00:02:04]} Qc5 {[%clk 00:04:39]} {[%emt 00:00:34]} 18. Qd3
{[%clk 00:07:22]} {[%emt 00:03:29]} Rxf3 {[%clk 00:02:15]} {[%emt 00:02:29]} 19.
Qxf3 {[%clk 00:05:57]} {[%emt 00:01:29]} Qxg5 {[%clk 00:02:19]} {[%emt
00:00:02]} 20. Qh3 {[%clk 00:05:33]} {[%emt 00:00:28]} Kd8 {[%clk 00:01:39]}
{[%emt 00:00:45]} 21. Qd3 {[%clk 00:05:09]} {[%emt 00:00:29]} Qh5 {[%clk
00:00:49]} {[%emt 00:00:56]} 22. g3 {[%clk 00:05:01]} {[%emt 00:00:12]} Ne5
{[%clk 00:00:50]} {[%emt 00:00:05]} 23. R1xe5 {[%clk 00:03:42]} {[%emt
00:01:23]} Bxe5 {[%clk 00:00:54]} {[%emt 00:00:02]} 24. Qb5 {[%clk 00:02:39]}
{[%emt 00:01:08]} Re8 {[%clk 00:00:43]} {[%emt 00:00:15]} 25. Qd5+ {[%clk
00:01:32]} {[%emt 00:01:12]} Kc8 {[%clk 00:00:46]} {[%emt 00:00:03]} 26. f4
{[%clk 00:01:26]} {[%emt 00:00:10]} Qd1+ {[%clk 00:00:24]} {[%emt 00:00:28]} 27.
Kf2 {[%clk 00:01:11]} {[%emt 00:00:20]} Qxc2+ {[%clk 00:00:26]} {[%emt
00:00:03]} 28. Kf1 {[%clk 00:00:54]} {[%emt 00:00:21]} Qd3+ {[%clk 00:00:29]}
{[%emt 00:00:03]} 29. Kg2 {[%clk 00:00:36]} {[%emt 00:00:23]} Qe2+ {[%clk
00:00:32]} {[%emt 00:00:03]} 30. Kh3 {[%clk 00:00:28]} {[%emt 00:00:10]} Qh5+
{[%clk 00:00:34]} {[%emt 00:00:04]} 31. Kg2 {[%clk 00:00:32]} {[%emt 00:00:02]}
Qe2+ {[%clk 00:00:38]} 32. Kh3 {[%clk 00:00:36]} Rd8 {[%clk 00:00:24]} {[%emt
00:00:18]} 33. Rxe5 {[%clk 00:00:13]} {[%emt 00:00:28]} Rxd5 {[%clk 00:00:26]}
{[%emt 00:00:04]} 34. Rxe2 {[%clk 00:00:16]} {[%emt 00:00:02]} Rb5 {[%clk
00:00:16]} {[%emt 00:00:15]} 35. Kg4 {[%clk 00:00:07]} {[%emt 00:00:13]} Rxb3
{[%clk 00:00:19]} {[%emt 00:00:03]} 36. Kf5 {[%clk 00:00:07]} {[%emt 00:00:04]}
Kd7 {[%clk 00:00:22]} {[%emt 00:00:03]} 37. g4 {[%clk 00:00:07]} {[%emt
00:00:05]} c5 {[%clk 00:00:18]} {[%emt 00:00:09]} 38. Ke5 {[%clk 00:00:07]}
{[%emt 00:00:05]} Re3+ {[%clk 00:00:21]} {[%emt 00:00:02]} 0-1

[Event "Open NK Rapid 2025 bord 26-50"]
[Site "Helmond, Netherlands"]
[Date "2025.05.03"]
[Round "8.11"]
[White "Werkhoven, Maarten"]
[Black "Margaryan, Aren"]
[Result "0-1"]
[TimeControl "15 min +5 sec increment"]
[WhiteFideId "1014188"]
[BlackFideId "40105075"]
[WhiteElo "1822"]
[BlackElo "2054"]

1. Nc3 {[%clk 00:15:09]} {[%emt 00:00:01]} d5 {[%clk 00:15:05]} {[%emt
00:00:05]} 2. e4 {[%clk 00:15:11]} {[%emt 00:00:01]} e6 {[%clk 00:14:52]}
{[%emt 00:00:19]} 3. Nf3 {[%clk 00:15:06]} {[%emt 00:00:09]} Nf6 {[%clk
00:14:38]} {[%emt 00:00:20]} 4. exd5 {[%clk 00:14:26]} {[%emt 00:00:45]} exd5
{[%clk 00:14:37]} {[%emt 00:00:06]} 5. d4 {[%clk 00:14:04]} {[%emt 00:00:27]}
Be7 {[%clk 00:14:13]} {[%emt 00:00:29]} 6. Bd3 {[%clk 00:13:39]} {[%emt
00:00:29]} O-O {[%clk 00:14:09]} {[%emt 00:00:10]} 7. O-O {[%clk 00:13:41]}
{[%emt 00:00:03]} b6 {[%clk 00:14:06]} {[%emt 00:00:07]} 8. Bg5 {[%clk
00:13:36]} {[%emt 00:00:11]} Bb7 {[%clk 00:14:05]} {[%emt 00:00:06]} 9. Re1
{[%clk 00:13:13]} {[%emt 00:00:28]} h6 {[%clk 00:13:49]} {[%emt 00:00:20]} 10.
Bh4 {[%clk 00:12:57]} {[%emt 00:00:22]} Nbd7 {[%clk 00:13:39]} {[%emt
00:00:14]} 11. Ne5 {[%clk 00:12:12]} {[%emt 00:00:51]} Nxe5 {[%clk 00:13:18]}
{[%emt 00:00:26]} 12. Rxe5 {[%clk 00:10:16]} {[%emt 00:02:01]} Re8 {[%clk
00:12:40]} {[%emt 00:00:44]} 13. Qd2 {[%clk 00:08:15]} {[%emt 00:02:05]} Nd7
{[%clk 00:11:53]} {[%emt 00:00:53]} 14. Bxe7 {[%clk 00:08:08]} {[%emt
00:00:11]} Rxe7 {[%clk 00:11:54]} {[%emt 00:00:04]} 15. Rxe7 {[%clk 00:08:10]}
{[%emt 00:00:03]} Qxe7 {[%clk 00:11:57]} {[%emt 00:00:02]} 16. Re1 {[%clk
00:08:08]} {[%emt 00:00:07]} Qf8 {[%clk 00:11:39]} {[%emt 00:00:23]} 17. a3
{[%clk 00:07:32]} {[%emt 00:00:42]} Re8 {[%clk 00:11:26]} {[%emt 00:00:17]} 18.
Rxe8 {[%clk 00:07:36]} {[%emt 00:00:02]} Qxe8 {[%clk 00:11:28]} {[%emt
00:00:02]} 19. Qe3 {[%clk 00:07:38]} {[%emt 00:00:03]} Kf8 {[%clk 00:11:05]}
{[%emt 00:00:29]} 20. Qxe8+ {[%clk 00:07:41]} {[%emt 00:00:02]} Kxe8 {[%clk
00:11:14]} {[%emt 00:00:01]} 21. f4 {[%clk 00:07:32]} {[%emt 00:00:18]} c5
{[%clk 00:10:59]} {[%emt 00:00:20]} 22. dxc5 {[%clk 00:07:14]} {[%emt
00:00:24]} bxc5 {[%clk 00:10:50]} {[%emt 00:00:14]} 23. Bb5 {[%clk 00:07:16]}
{[%emt 00:00:03]} Ke7 {[%clk 00:10:48]} {[%emt 00:00:06]} 24. Bxd7 {[%clk
00:07:20]} {[%emt 00:00:02]} Kxd7 {[%clk 00:10:51]} {[%emt 00:00:02]} 25. Kf2
{[%clk 00:07:14]} {[%emt 00:00:11]} d4 {[%clk 00:10:50]} {[%emt 00:00:06]} 26.
Nd1 {[%clk 00:06:44]} {[%emt 00:00:34]} c4 {[%clk 00:10:05]} {[%emt 00:00:51]}
27. c3 {[%clk 00:06:43]} {[%emt 00:00:06]} d3 {[%clk 00:10:08]} {[%emt
00:00:02]} 28. Ne3 {[%clk 00:06:42]} {[%emt 00:00:05]} Ba6 {[%clk 00:10:06]}
{[%emt 00:00:08]} 29. Nf5 {[%clk 00:06:19]} {[%emt 00:00:28]} Bb7 {[%clk
00:08:19]} {[%emt 00:01:51]} 30. g3 {[%clk 00:05:26]} {[%emt 00:00:58]} Be4
{[%clk 00:08:00]} {[%emt 00:00:24]} 31. Nxg7 {[%clk 00:04:46]} {[%emt
00:00:46]} Bg6 {[%clk 00:07:49]} {[%emt 00:00:16]} 32. g4 {[%clk 00:04:35]}
{[%emt 00:00:16]} Ke7 {[%clk 00:07:32]} {[%emt 00:00:18]} 33. f5 {[%clk
00:04:31]} {[%emt 00:00:13]} Bh7 {[%clk 00:07:10]} {[%emt 00:00:26]} 34. Ke3
{[%clk 00:04:24]} {[%emt 00:00:13]} Kf6 {[%clk 00:06:53]} {[%emt 00:00:20]} 35.
Nh5+ {[%clk 00:03:51]} {[%emt 00:00:38]} Kg5 {[%clk 00:06:49]} {[%emt
00:00:10]} 36. h3 {[%clk 00:01:57]} {[%emt 00:01:59]} Bxf5 {[%clk 00:06:41]}
{[%emt 00:00:14]} 37. gxf5 {[%clk 00:01:59]} {[%emt 00:00:02]} Kxh5 {[%clk
00:06:44]} {[%emt 00:00:02]} 38. b3 {[%clk 00:02:03]} {[%emt 00:00:01]} cxb3
{[%clk 00:06:35]} {[%emt 00:00:15]} 39. Kxd3 {[%clk 00:02:06]} {[%emt
00:00:01]} Kg5 {[%clk 00:06:38]} {[%emt 00:00:03]} 40. c4 {[%clk 00:01:56]}
{[%emt 00:00:15]} Kxf5 {[%clk 00:06:41]} {[%emt 00:00:02]} 41. Kc3 {[%clk
00:02:00]} {[%emt 00:00:01]} Ke5 {[%clk 00:06:39]} {[%emt 00:00:07]} 42. Kxb3
{[%clk 00:02:03]} {[%emt 00:00:02]} f5 {[%clk 00:06:41]} {[%emt 00:00:03]} 43.
Kc3 {[%clk 00:02:06]} {[%emt 00:00:01]} Ke4 {[%clk 00:06:35]} {[%emt 00:00:12]}
44. h4 {[%clk 00:01:31]} {[%emt 00:00:40]} h5 {[%clk 00:06:12]} {[%emt
00:00:27]} 45. a4 {[%clk 00:01:31]} {[%emt 00:00:06]} a5 {[%clk 00:06:16]}
{[%emt 00:00:02]} 46. Kd2 {[%clk 00:01:04]} {[%emt 00:00:31]} Kd4 {[%clk
00:06:16]} {[%emt 00:00:05]} 47. c5 {[%clk 00:01:08]} {[%emt 00:00:01]} Kxc5
{[%clk 00:06:19]} {[%emt 00:00:02]} 48. Ke3 {[%clk 00:01:12]} Kb4 {[%clk
00:06:12]} {[%emt 00:00:13]} 49. Kf4 {[%clk 00:01:16]} Kxa4 {[%clk 00:06:16]}
{[%emt 00:00:02]} 50. Kg5 {[%clk 00:01:20]} Kb4 {[%clk 00:06:09]} {[%emt
00:00:12]} 51. Kxh5 {[%clk 00:01:23]} a4 {[%clk 00:06:14]} {[%emt 00:00:01]} 52.
Kg5 {[%clk 00:01:25]} {[%emt 00:00:02]} a3 {[%clk 00:06:18]} {[%emt 00:00:02]}
53. h5 {[%clk 00:01:30]} a2 {[%clk 00:06:22]} {[%emt 00:00:02]} 54. h6 {[%clk
00:01:34]} a1=Q {[%clk 00:06:23]} {[%emt 00:00:03]} 55. h7 {[%clk 00:01:38]}
{[%emt 00:00:02]} Qg7+ {[%clk 00:06:26]} {[%emt 00:00:01]} 0-1

[Event "Open NK Rapid 2025 bord 26-50"]
[Site "Helmond, Netherlands"]
[Date "2025.05.03"]
[Round "8.12"]
[White "Omnes, Tiago"]
[Black "Gotes Perez, Jaume"]
[Result "1-0"]
[TimeControl "15 min +5 sec increment"]
[WhiteFideId "1091867"]
[BlackFideId "2276801"]
[WhiteElo "1813"]
[BlackElo "2005"]

1. e4 {[%clk 00:15:09]} {[%emt 00:13:52]} e5 {[%clk 00:15:09]} {[%emt
00:00:02]} 2. Nf3 {[%clk 00:15:12]} {[%emt 00:00:01]} Nc6 {[%clk 00:15:13]}
{[%emt 00:00:02]} 3. d4 {[%clk 00:15:16]} {[%emt 00:00:01]} exd4 {[%clk
00:15:16]} {[%emt 00:00:02]} 4. Bc4 {[%clk 00:15:20]} {[%emt 00:00:01]} Nf6
{[%clk 00:15:19]} {[%emt 00:00:02]} 5. e5 {[%clk 00:15:23]} d5 {[%clk
00:15:21]} {[%emt 00:00:04]} 6. Bb5 {[%clk 00:15:27]} Ne4 {[%clk 00:15:24]}
{[%emt 00:00:02]} 7. Nxd4 {[%clk 00:15:30]} {[%emt 00:00:02]} Bd7 {[%clk
00:15:27]} {[%emt 00:00:02]} 8. Bxc6 {[%clk 00:15:34]} {[%emt 00:00:01]} bxc6
{[%clk 00:15:30]} {[%emt 00:00:02]} 9. O-O {[%clk 00:15:36]} {[%emt 00:00:03]}
Be7 {[%clk 00:15:08]} {[%emt 00:00:27]} 10. f3 {[%clk 00:15:38]} {[%emt
00:00:03]} Ng5 {[%clk 00:14:17]} {[%emt 00:00:56]} 11. f4 {[%clk 00:15:40]}
{[%emt 00:00:02]} Ne4 {[%clk 00:14:11]} {[%emt 00:00:11]} 12. Nc3 {[%clk
00:15:41]} {[%emt 00:00:04]} Nxc3 {[%clk 00:13:48]} {[%emt 00:00:29]} 13. bxc3
{[%clk 00:15:45]} {[%emt 00:00:02]} c5 {[%clk 00:13:08]} {[%emt 00:00:44]} 14.
Nf3 {[%clk 00:15:14]} {[%emt 00:00:35]} Bf5 {[%clk 00:12:49]} {[%emt 00:00:25]}
15. Be3 {[%clk 00:14:51]} {[%emt 00:00:27]} O-O {[%clk 00:12:10]} {[%emt
00:00:45]} 16. h3 {[%clk 00:14:28]} {[%emt 00:00:28]} f6 {[%clk 00:11:53]}
{[%emt 00:00:22]} 17. Qd2 {[%clk 00:13:09]} {[%emt 00:01:23]} Be4 {[%clk
00:10:59]} {[%emt 00:01:00]} 18. exf6 {[%clk 00:11:09]} {[%emt 00:02:05]} Rxf6
{[%clk 00:10:52]} {[%emt 00:00:12]} 19. Ng5 {[%clk 00:10:26]} {[%emt 00:00:47]}
Rf8 {[%clk 00:08:12]} {[%emt 00:02:46]} 20. Ne6 {[%clk 00:10:15]} {[%emt
00:00:16]} Qd6 {[%clk 00:07:56]} {[%emt 00:00:20]} 21. Nxf8 {[%clk 00:10:18]}
{[%emt 00:00:03]} Rxf8 {[%clk 00:07:59]} {[%emt 00:00:02]} 22. Rae1 {[%clk
00:08:25]} {[%emt 00:01:55]} Qg6 {[%clk 00:07:34]} {[%emt 00:00:33]} 23. Re2
{[%clk 00:07:19]} {[%emt 00:01:11]} c4 {[%clk 00:06:46]} {[%emt 00:00:53]} 24.
Bd4 {[%clk 00:04:46]} {[%emt 00:02:38]} Bh4 {[%clk 00:06:09]} {[%emt 00:00:42]}
25. Be5 {[%clk 00:01:33]} {[%emt 00:03:18]} c6 {[%clk 00:05:56]} {[%emt
00:00:18]} 26. Bd4 {[%clk 00:00:59]} {[%emt 00:00:38]} Bg3 {[%clk 00:05:30]}
{[%emt 00:00:32]} 27. Be5 {[%clk 00:00:35]} {[%emt 00:00:30]} h5 {[%clk
00:04:53]} {[%emt 00:00:42]} 28. Qe3 {[%clk 00:00:19]} {[%emt 00:00:20]} Bxc2
{[%clk 00:04:25]} {[%emt 00:00:34]} 29. Rxc2 {[%clk 00:00:17]} {[%emt
00:00:06]} Qxc2 {[%clk 00:04:02]} {[%emt 00:00:27]} 30. Qxg3 {[%clk 00:00:21]}
{[%emt 00:00:01]} Rf7 {[%clk 00:04:03]} {[%emt 00:00:05]} 31. f5 {[%clk
00:00:16]} {[%emt 00:00:11]} Kh7 {[%clk 00:03:33]} {[%emt 00:00:34]} 32. Qg6+
{[%clk 00:00:20]} {[%emt 00:00:01]} Kg8 {[%clk 00:03:37]} {[%emt 00:00:02]} 33.
Qxh5 {[%clk 00:00:23]} {[%emt 00:00:01]} Qe4 {[%clk 00:03:32]} {[%emt
00:00:09]} 34. Bd4 {[%clk 00:00:26]} {[%emt 00:00:03]} a5 {[%clk 00:03:29]}
{[%emt 00:00:09]} 35. Qg6 {[%clk 00:00:29]} a4 {[%clk 00:03:22]} {[%emt
00:00:12]} 36. Qxc6 {[%clk 00:00:32]} {[%emt 00:00:01]} Kh7 {[%clk 00:03:21]}
{[%emt 00:00:07]} 37. Qxa4 {[%clk 00:00:36]} {[%emt 00:00:01]} Rxf5 {[%clk
00:03:21]} {[%emt 00:00:05]} 38. Rxf5 {[%clk 00:00:32]} Qxf5 {[%clk 00:03:25]}
{[%emt 00:00:10]} 39. Qd1 {[%clk 00:00:20]} {[%emt 00:00:16]} g6 {[%clk
00:03:06]} {[%emt 00:00:25]} 40. a4 {[%clk 00:00:24]} Qd7 {[%clk 00:02:55]}
{[%emt 00:00:16]} 41. a5 {[%clk 00:00:26]} {[%emt 00:00:03]} Qb5 {[%clk
00:02:55]} {[%emt 00:00:05]} 42. Qa1 {[%clk 00:00:29]} {[%emt 00:00:02]} Qa6
{[%clk 00:02:57]} {[%emt 00:00:03]} 43. Bb6 {[%clk 00:00:34]} Kg7 {[%clk
00:02:47]} {[%emt 00:00:15]} 44. Qa4 {[%clk 00:00:34]} {[%emt 00:00:03]} Kf6
{[%clk 00:02:41]} {[%emt 00:00:12]} 45. Qc6+ {[%clk 00:00:38]} Ke5 {[%clk
00:02:44]} {[%emt 00:00:02]} 46. Bd4+ {[%clk 00:00:41]} {[%emt 00:00:01]} Ke4
{[%clk 00:02:48]} {[%emt 00:00:01]} 47. Qxa6 {[%clk 00:00:45]} {[%emt
00:00:01]} 1-0